[Event "Late-Titled-Tuesday-Blitz-September-05-2023"]
[Site "Chess.com"]
[Date "2023.09.05"]
[Round "5"]
[White "grzechu96"]
[Black "GM_dmitrij"]
[Result "0-1"]
[WhiteElo "2663"]
[BlackElo "3037"]
[TimeControl "180+1"]
[EndTime "14:56:15 PDT"]
[Termination "GM_dmitrij won on time"]

1. e4 {[%clk 0:03:00.9]} 1... c5 {[%clk 0:02:58.4]} 2. Nf3 {[%clk 0:02:54]} 2...
d6 {[%clk 0:02:58]} 3. d4 {[%clk 0:02:49.8]} 3... cxd4 {[%clk 0:02:58.9]} 4.
Nxd4 {[%clk 0:02:50.5]} 4... Nf6 {[%clk 0:02:58.5]} 5. Nc3 {[%clk 0:02:50.7]}
5... Nc6 {[%clk 0:02:59]} 6. f3 {[%clk 0:02:48.1]} 6... e5 {[%clk 0:02:58.2]} 7.
Nb3 {[%clk 0:02:48.5]} 7... Be7 {[%clk 0:02:56.3]} 8. Be3 {[%clk 0:02:47.8]}
8... O-O {[%clk 0:02:54.7]} 9. Qd2 {[%clk 0:02:46.8]} 9... a5 {[%clk 0:02:47.6]}
10. Bb5 {[%clk 0:02:39.9]} 10... Na7 {[%clk 0:02:44.3]} 11. Bxa7 {[%clk
0:02:35.3]} 11... Rxa7 {[%clk 0:02:45.2]} 12. O-O-O {[%clk 0:02:35.3]} 12... Be6
{[%clk 0:02:45.5]} 13. Qe3 {[%clk 0:02:33.8]} 13... Ra8 {[%clk 0:02:43.4]} 14.
Kb1 {[%clk 0:02:33.3]} 14... Qc7 {[%clk 0:02:37.6]} 15. Rd3 {[%clk 0:01:48.4]}
15... Rfc8 {[%clk 0:01:58.1]} 16. a4 {[%clk 0:01:40.5]} 16... d5 {[%clk
0:01:44.4]} 17. exd5 {[%clk 0:01:38]} 17... Bf5 {[%clk 0:01:44.9]} 18. Rdd1
{[%clk 0:01:07.5]} 18... Bb4 {[%clk 0:01:44.8]} 19. Bd3 {[%clk 0:01:01.3]} 19...
Bd7 {[%clk 0:01:20.9]} 20. Rhe1 {[%clk 0:00:09.2]} 20... Bxc3 {[%clk 0:01:00.1]}
21. bxc3 {[%clk 0:00:10.1]} 21... Qxc3 {[%clk 0:01:00.6]} 22. Qxe5 {[%clk
0:00:09]} 22... Qb4 {[%clk 0:01:01.2]} 23. Qd4 {[%clk 0:00:04.1]} 23... Qa3
{[%clk 0:00:53]} 24. Qb2 {[%clk 0:00:01.9]} 24... Qb4 {[%clk 0:00:45.7]} 25. d6
{[%clk 0:00:02]} 25... Bxa4 {[%clk 0:00:42.1]} 26. Be4 {[%clk 0:00:02.1]} 26...
Rab8 {[%clk 0:00:17.3]} 27. Rd4 {[%clk 0:00:01.3]} 27... Qxe1+ {[%clk
0:00:13.6]} 0-1

[Event "Late-Titled-Tuesday-Blitz-September-05-2023"]
[Site "Chess.com"]
[Date "2023.09.05"]
[Round "5"]
[White "Roedor"]
[Black "cande_francisco"]
[Result "0-1"]
[WhiteElo "2420"]
[BlackElo "2566"]
[TimeControl "180+1"]
[EndTime "14:56:22 PDT"]
[Termination "cande_francisco won by resignation"]

1. d4 {[%clk 0:02:54.1]} 1... Nf6 {[%clk 0:02:57.9]} 2. c4 {[%clk 0:02:53.6]}
2... c5 {[%clk 0:02:57.1]} 3. d5 {[%clk 0:02:49.8]} 3... e6 {[%clk 0:02:57.4]}
4. Nc3 {[%clk 0:02:49.4]} 4... exd5 {[%clk 0:02:58]} 5. cxd5 {[%clk 0:02:50.3]}
5... d6 {[%clk 0:02:58.7]} 6. e4 {[%clk 0:02:50.6]} 6... g6 {[%clk 0:02:59.2]}
7. h3 {[%clk 0:02:51.2]} 7... Bg7 {[%clk 0:02:58.7]} 8. Bd3 {[%clk 0:02:51.8]}
8... O-O {[%clk 0:02:58.9]} 9. Bg5 {[%clk 0:02:51.1]} 9... h6 {[%clk 0:02:56.5]}
10. Be3 {[%clk 0:02:51]} 10... Re8 {[%clk 0:02:53.6]} 11. Nf3 {[%clk 0:02:51.1]}
11... c4 {[%clk 0:02:50.2]} 12. Bc2 {[%clk 0:02:51.3]} 12... b5 {[%clk
0:02:48.2]} 13. a3 {[%clk 0:02:51.4]} 13... a5 {[%clk 0:02:47.1]} 14. O-O {[%clk
0:02:50.8]} 14... Bb7 {[%clk 0:02:44.2]} 15. Qd2 {[%clk 0:02:22.8]} 15... b4
{[%clk 0:02:39.4]} 16. axb4 {[%clk 0:02:14.1]} 16... axb4 {[%clk 0:02:40.3]} 17.
Nb5 {[%clk 0:02:14]} 17... Nxe4 {[%clk 0:02:19.7]} 18. Bxe4 {[%clk 0:02:12.4]}
18... Rxe4 {[%clk 0:02:20.6]} 19. Rxa8 {[%clk 0:02:09.2]} 19... Bxa8 {[%clk
0:02:19.5]} 20. Bxh6 {[%clk 0:02:06.7]} 20... Na6 {[%clk 0:02:12.7]} 21. Ra1
{[%clk 0:02:03.4]} 21... Bb7 {[%clk 0:02:07.6]} 22. Bxg7 {[%clk 0:01:49.8]}
22... Kxg7 {[%clk 0:02:08.5]} 23. Nbd4 {[%clk 0:00:50.1]} 23... Nc5 {[%clk
0:01:50.7]} 24. Ra7 {[%clk 0:00:40]} 24... Bxd5 {[%clk 0:01:37.8]} 25. Nf5+
{[%clk 0:00:38.7]} 25... gxf5 {[%clk 0:01:36.4]} 26. Qxd5 {[%clk 0:00:38.8]}
26... Qf6 {[%clk 0:01:31.7]} 27. Ng5 {[%clk 0:00:14.1]} 27... Re7 {[%clk
0:01:06.8]} 28. Rxe7 {[%clk 0:00:13.4]} 28... Qxe7 {[%clk 0:01:07.7]} 29. Qxf5
{[%clk 0:00:13.6]} 29... Qe1+ {[%clk 0:01:08.1]} 30. Kh2 {[%clk 0:00:12.5]}
30... Qe5+ {[%clk 0:01:09]} 31. Qxe5+ {[%clk 0:00:12.3]} 31... dxe5 {[%clk
0:01:09.9]} 32. Nf3 {[%clk 0:00:11.3]} 32... Nd3 {[%clk 0:01:08]} 33. Kg3 {[%clk
0:00:09.9]} 33... c3 {[%clk 0:01:06.4]} 34. bxc3 {[%clk 0:00:09.6]} 34... bxc3
{[%clk 0:01:07.3]} 35. Ng1 {[%clk 0:00:07.2]} 35... Nf4 {[%clk 0:01:04.9]} 36.
Nf3 {[%clk 0:00:02.3]} 36... c2 {[%clk 0:01:04.1]} 37. Nxe5 {[%clk 0:00:02]}
37... c1=Q {[%clk 0:01:02.4]} 38. Ng4 {[%clk 0:00:02.5]} 38... Ne2+ {[%clk
0:01:00.1]} 39. Kf3 {[%clk 0:00:02.5]} 39... Nd4+ {[%clk 0:00:58.4]} 40. Kg3
{[%clk 0:00:02.9]} 40... Qc3+ {[%clk 0:00:57.4]} 41. Ne3 {[%clk 0:00:03.1]}
41... Nf5+ {[%clk 0:00:57]} 42. Kf4 {[%clk 0:00:03.7]} 42... Nxe3 {[%clk
0:00:57.9]} 43. fxe3 {[%clk 0:00:04.5]} 43... Kg6 {[%clk 0:00:57.4]} 44. g4
{[%clk 0:00:05]} 44... Qd3 {[%clk 0:00:52.6]} 45. h4 {[%clk 0:00:04.9]} 45...
Qf1+ {[%clk 0:00:51.9]} 46. Kg3 {[%clk 0:00:05]} 46... Qe2 {[%clk 0:00:52]} 47.
h5+ {[%clk 0:00:04.9]} 47... Kg5 {[%clk 0:00:52.2]} 0-1

[Event "Late-Titled-Tuesday-Blitz-September-05-2023"]
[Site "Chess.com"]
[Date "2023.09.05"]
[Round "5"]
[White "temus_galaktionov"]
[Black "jup1978"]
[Result "1/2-1/2"]
[WhiteElo "2799"]
[BlackElo "2545"]
[TimeControl "180+1"]
[EndTime "14:56:25 PDT"]
[Termination "Game drawn - insufficient material"]

1. d4 {[%clk 0:03:00.9]} 1... d5 {[%clk 0:02:59.5]} 2. c4 {[%clk 0:03:01]} 2...
c6 {[%clk 0:02:59.8]} 3. Nf3 {[%clk 0:03:01.7]} 3... Nf6 {[%clk 0:03:00.2]} 4.
Qb3 {[%clk 0:03:02.1]} 4... dxc4 {[%clk 0:02:57.7]} 5. Qxc4 {[%clk 0:03:03]}
5... Bf5 {[%clk 0:02:54]} 6. Nc3 {[%clk 0:03:03]} 6... e6 {[%clk 0:02:51.6]} 7.
g3 {[%clk 0:03:03.5]} 7... Nbd7 {[%clk 0:02:45.2]} 8. Bg2 {[%clk 0:03:03.4]}
8... Be7 {[%clk 0:02:29.6]} 9. Qb3 {[%clk 0:03:03.4]} 9... Qb6 {[%clk
0:02:25.9]} 10. Nd2 {[%clk 0:03:04]} 10... e5 {[%clk 0:02:00.7]} 11. d5 {[%clk
0:03:02.9]} 11... Qxb3 {[%clk 0:01:53.7]} 12. Nxb3 {[%clk 0:02:58]} 12... cxd5
{[%clk 0:01:52.6]} 13. Nxd5 {[%clk 0:02:58.9]} 13... Nxd5 {[%clk 0:01:52.5]} 14.
Bxd5 {[%clk 0:02:59.8]} 14... Rb8 {[%clk 0:01:48.7]} 15. Be3 {[%clk 0:02:49.6]}
15... Bb4+ {[%clk 0:01:42.2]} 16. Kf1 {[%clk 0:02:34.6]} 16... Bh3+ {[%clk
0:01:36.7]} 17. Bg2 {[%clk 0:02:34.4]} 17... Bxg2+ {[%clk 0:01:33.5]} 18. Kxg2
{[%clk 0:02:35.3]} 18... b6 {[%clk 0:01:33.6]} 19. Rac1 {[%clk 0:02:34.9]} 19...
Bd6 {[%clk 0:01:29.6]} 20. Rhd1 {[%clk 0:02:32.7]} 20... Ke7 {[%clk 0:01:29.3]}
21. Rc6 {[%clk 0:02:32.2]} 21... Bc5 {[%clk 0:01:06.4]} 22. Rc7 {[%clk
0:02:31.7]} 22... Bd6 {[%clk 0:00:56.3]} 23. Rxa7 {[%clk 0:02:27.3]} 23... Ra8
{[%clk 0:00:56.3]} 24. Rxa8 {[%clk 0:02:21]} 24... Rxa8 {[%clk 0:00:57.2]} 25.
a3 {[%clk 0:02:21.4]} 25... Rc8 {[%clk 0:00:57]} 26. Rc1 {[%clk 0:02:00.4]}
26... Rxc1 {[%clk 0:00:55.4]} 27. Nxc1 {[%clk 0:02:01.3]} 27... Ke6 {[%clk
0:00:53.1]} 28. Kf1 {[%clk 0:01:52.8]} 28... e4 {[%clk 0:00:53.2]} 29. Bd4
{[%clk 0:01:51]} 29... g6 {[%clk 0:00:51.7]} 30. Ke1 {[%clk 0:01:48.2]} 30... f5
{[%clk 0:00:50.6]} 31. Kd2 {[%clk 0:01:47.8]} 31... Kd5 {[%clk 0:00:50.2]} 32.
Kc3 {[%clk 0:01:44.1]} 32... Be5 {[%clk 0:00:46.9]} 33. Bxe5 {[%clk 0:01:43.9]}
33... Nxe5 {[%clk 0:00:46.8]} 34. h3 {[%clk 0:01:44.1]} 34... h5 {[%clk
0:00:40.6]} 35. Na2 {[%clk 0:01:38.1]} 35... Kc5 {[%clk 0:00:36.2]} 36. b4+
{[%clk 0:01:33.3]} 36... Kd5 {[%clk 0:00:32.6]} 37. a4 {[%clk 0:01:32.3]} 37...
g5 {[%clk 0:00:32.1]} 38. e3 {[%clk 0:01:28.2]} 38... h4 {[%clk 0:00:31.2]} 39.
gxh4 {[%clk 0:01:26.3]} 39... gxh4 {[%clk 0:00:32.1]} 40. a5 {[%clk 0:01:21.6]}
40... bxa5 {[%clk 0:00:33]} 41. bxa5 {[%clk 0:01:22.3]} 41... Nf7 {[%clk
0:00:33.4]} 42. a6 {[%clk 0:01:13.7]} 42... Kc6 {[%clk 0:00:33.1]} 43. Nb4+
{[%clk 0:01:07.7]} 43... Kb6 {[%clk 0:00:32.9]} 44. Nd5+ {[%clk 0:00:28]} 44...
Kxa6 {[%clk 0:00:31.2]} 45. Ne7 {[%clk 0:00:28.2]} 45... Ng5 {[%clk 0:00:31.8]}
46. Nxf5 {[%clk 0:00:26.6]} 46... Nxh3 {[%clk 0:00:32.3]} 47. Nxh4 {[%clk
0:00:24.3]} 47... Nxf2 {[%clk 0:00:30.9]} 48. Kd4 {[%clk 0:00:25.2]} 48... Ng4
{[%clk 0:00:30.6]} 49. Kxe4 {[%clk 0:00:25.5]} 49... Nxe3 {[%clk 0:00:30.6]}
1/2-1/2

[Event "Late-Titled-Tuesday-Blitz-September-05-2023"]
[Site "Chess.com"]
[Date "2023.09.05"]
[Round "5"]
[White "GarayevKanan"]
[Black "bazar-wokzal"]
[Result "1-0"]
[WhiteElo "2710"]
[BlackElo "2516"]
[TimeControl "180+1"]
[EndTime "14:56:25 PDT"]
[Termination "GarayevKanan won by resignation"]

1. Nf3 {[%clk 0:03:00.3]} 1... c5 {[%clk 0:02:58.2]} 2. c3 {[%clk 0:02:51.1]}
2... d5 {[%clk 0:02:56.8]} 3. d4 {[%clk 0:02:51]} 3... e6 {[%clk 0:02:55]} 4.
Bf4 {[%clk 0:02:47.5]} 4... Nf6 {[%clk 0:02:54.7]} 5. e3 {[%clk 0:02:47.3]} 5...
Bd6 {[%clk 0:02:54.5]} 6. Bg3 {[%clk 0:02:45.4]} 6... Nc6 {[%clk 0:02:53.1]} 7.
Nbd2 {[%clk 0:02:45.8]} 7... Qe7 {[%clk 0:02:52]} 8. Bb5 {[%clk 0:02:42.9]} 8...
Bd7 {[%clk 0:02:50.6]} 9. O-O {[%clk 0:02:35.3]} 9... Bxg3 {[%clk 0:02:42.2]}
10. hxg3 {[%clk 0:02:35]} 10... Ng4 {[%clk 0:02:20.2]} 11. Nb3 {[%clk
0:01:49.8]} 11... c4 {[%clk 0:02:15.7]} 12. Nc5 {[%clk 0:01:49.1]} 12... O-O
{[%clk 0:02:02.1]} 13. e4 {[%clk 0:01:38.5]} 13... Be8 {[%clk 0:01:43.9]} 14.
exd5 {[%clk 0:01:30.8]} 14... exd5 {[%clk 0:01:43.9]} 15. Re1 {[%clk 0:01:31.5]}
15... Qc7 {[%clk 0:01:34.7]} 16. b3 {[%clk 0:01:24.6]} 16... a6 {[%clk
0:01:29.7]} 17. Bxc6 {[%clk 0:01:18.8]} 17... Bxc6 {[%clk 0:01:29.5]} 18. bxc4
{[%clk 0:00:55.5]} 18... dxc4 {[%clk 0:01:29.4]} 19. d5 {[%clk 0:00:55.5]} 19...
Rad8 {[%clk 0:01:17.5]} 20. Nd4 {[%clk 0:00:54.7]} 20... Rxd5 {[%clk 0:01:11.3]}
21. Nce6 {[%clk 0:00:47.8]} 21... fxe6 {[%clk 0:01:09.9]} 22. Qxg4 {[%clk
0:00:47.4]} 22... e5 {[%clk 0:00:58]} 23. Nf5 {[%clk 0:00:39.1]} 23... Rf6
{[%clk 0:00:50.9]} 24. Ne3 {[%clk 0:00:33.6]} 24... Rc5 {[%clk 0:00:47]} 25.
Rad1 {[%clk 0:00:31.3]} 25... h6 {[%clk 0:00:34.9]} 26. Nxc4 {[%clk 0:00:28.5]}
26... Bxg2 {[%clk 0:00:29.9]} 27. Rd7 {[%clk 0:00:21.5]} 27... Qxd7 {[%clk
0:00:20.4]} 28. Qxd7 {[%clk 0:00:19.5]} 28... Bc6 {[%clk 0:00:13.5]} 29. Qd8+
{[%clk 0:00:17.1]} 29... Kh7 {[%clk 0:00:13.6]} 30. Nxe5 {[%clk 0:00:14.9]}
30... Bd5 {[%clk 0:00:09.9]} 31. Nd7 {[%clk 0:00:13.2]} 1-0

[Event "Late-Titled-Tuesday-Blitz-September-05-2023"]
[Site "Chess.com"]
[Date "2023.09.05"]
[Round "5"]
[White "PNEPaul"]
[Black "nitpicker"]
[Result "0-1"]
[WhiteElo "1880"]
[BlackElo "2272"]
[TimeControl "180+1"]
[EndTime "14:56:26 PDT"]
[Termination "nitpicker won on time"]

1. e4 {[%clk 0:03:00.9]} 1... c5 {[%clk 0:03:00.1]} 2. d4 {[%clk 0:03:00.3]}
2... cxd4 {[%clk 0:03:00.3]} 3. c3 {[%clk 0:03:00.5]} 3... dxc3 {[%clk
0:03:00.1]} 4. Nxc3 {[%clk 0:03:00.7]} 4... Nc6 {[%clk 0:02:59.6]} 5. Nf3 {[%clk
0:03:01]} 5... d6 {[%clk 0:02:59.7]} 6. Bc4 {[%clk 0:03:00.9]} 6... a6 {[%clk
0:02:59.6]} 7. O-O {[%clk 0:03:00.3]} 7... Nf6 {[%clk 0:02:58.8]} 8. Qe2 {[%clk
0:02:59.8]} 8... Bg4 {[%clk 0:02:57.9]} 9. Be3 {[%clk 0:02:52.8]} 9... e6 {[%clk
0:02:49.6]} 10. Rfd1 {[%clk 0:02:46.7]} 10... Qb8 {[%clk 0:02:44]} 11. Bb6
{[%clk 0:02:38.7]} 11... Ne5 {[%clk 0:02:31]} 12. Bb3 {[%clk 0:02:32]} 12... Be7
{[%clk 0:02:24.5]} 13. Qe3 {[%clk 0:02:24]} 13... O-O {[%clk 0:02:17.9]} 14. Rd2
{[%clk 0:02:09.1]} 14... Bxf3 {[%clk 0:01:46.3]} 15. gxf3 {[%clk 0:02:05.7]}
15... Rc8 {[%clk 0:01:42.3]} 16. f4 {[%clk 0:02:00.3]} 16... Nc4 {[%clk
0:01:40.5]} 17. Bxc4 {[%clk 0:01:59.7]} 17... Rxc4 {[%clk 0:01:41.2]} 18. Rad1
{[%clk 0:01:39.2]} 18... Qe8 {[%clk 0:01:18.7]} 19. h3 {[%clk 0:01:27.9]} 19...
Nd7 {[%clk 0:00:55.4]} 20. b3 {[%clk 0:01:03.1]} 20... Rc6 {[%clk 0:00:52.2]}
21. Ba5 {[%clk 0:00:56.1]} 21... b6 {[%clk 0:00:37.2]} 22. Bb4 {[%clk
0:00:55.4]} 22... Rac8 {[%clk 0:00:35.2]} 23. Ne2 {[%clk 0:00:48.1]} 23... Nc5
{[%clk 0:00:32.7]} 24. Bxc5 {[%clk 0:00:39]} 24... bxc5 {[%clk 0:00:26.6]} 25.
Ng3 {[%clk 0:00:36.4]} 25... g6 {[%clk 0:00:25.1]} 26. Qf3 {[%clk 0:00:33.8]}
26... Qf8 {[%clk 0:00:23.9]} 27. Kg2 {[%clk 0:00:23.5]} 27... Qg7 {[%clk
0:00:22.6]} 28. Rg1 {[%clk 0:00:22]} 28... c4 {[%clk 0:00:22.6]} 29. bxc4 {[%clk
0:00:20.8]} 29... Rxc4 {[%clk 0:00:22.9]} 30. Kh1 {[%clk 0:00:20.2]} 30... Rc3
{[%clk 0:00:22.8]} 31. Qg2 {[%clk 0:00:17.8]} 31... Qh6 {[%clk 0:00:21.4]} 32.
Rdd1 {[%clk 0:00:09]} 32... Qxf4 {[%clk 0:00:19.2]} 33. Nh5 {[%clk 0:00:07.3]}
33... Qf3 {[%clk 0:00:19.1]} 34. Qxf3 {[%clk 0:00:05.5]} 34... Rxf3 {[%clk
0:00:19]} 35. Ng3 {[%clk 0:00:05.5]} 35... Rxf2 {[%clk 0:00:18.4]} 0-1

[Event "Late-Titled-Tuesday-Blitz-September-05-2023"]
[Site "Chess.com"]
[Date "2023.09.05"]
[Round "5"]
[White "cthulhuuu"]
[Black "farzadbfd"]
[Result "0-1"]
[WhiteElo "2464"]
[BlackElo "2678"]
[TimeControl "180+1"]
[EndTime "14:56:27 PDT"]
[Termination "farzadbfd won by resignation"]

1. e4 {[%clk 0:03:00]} 1... e5 {[%clk 0:02:57.9]} 2. Nf3 {[%clk 0:02:59.9]} 2...
Nc6 {[%clk 0:02:57.8]} 3. Bb5 {[%clk 0:02:59.8]} 3... a6 {[%clk 0:02:57.5]} 4.
Bxc6 {[%clk 0:02:59.8]} 4... dxc6 {[%clk 0:02:57.5]} 5. O-O {[%clk 0:03:00.5]}
5... f6 {[%clk 0:02:56.7]} 6. d4 {[%clk 0:03:00.3]} 6... exd4 {[%clk 0:02:54.7]}
7. Nxd4 {[%clk 0:03:01]} 7... c5 {[%clk 0:02:54.8]} 8. Nb3 {[%clk 0:03:00.9]}
8... Qxd1 {[%clk 0:02:55.4]} 9. Rxd1 {[%clk 0:03:01.4]} 9... Bd7 {[%clk
0:02:56.1]} 10. Nc3 {[%clk 0:02:56.9]} 10... O-O-O {[%clk 0:02:52.7]} 11. Bf4
{[%clk 0:02:55]} 11... Bc6 {[%clk 0:02:47.6]} 12. Rxd8+ {[%clk 0:02:54.2]} 12...
Kxd8 {[%clk 0:02:48.5]} 13. Rd1+ {[%clk 0:02:54]} 13... Kc8 {[%clk 0:02:48.6]}
14. Nd5 {[%clk 0:02:54.2]} 14... Bxd5 {[%clk 0:02:47.8]} 15. Rxd5 {[%clk
0:02:52.8]} 15... b6 {[%clk 0:02:46.1]} 16. a4 {[%clk 0:02:49.1]} 16... Ne7
{[%clk 0:02:45.2]} 17. Rd1 {[%clk 0:02:45.8]} 17... Ng6 {[%clk 0:02:36.6]} 18.
Bg3 {[%clk 0:02:45.7]} 18... Be7 {[%clk 0:02:35.9]} 19. a5 {[%clk 0:02:42.5]}
19... Rd8 {[%clk 0:02:35.9]} 20. Rxd8+ {[%clk 0:02:41.1]} 20... Bxd8 {[%clk
0:02:31.7]} 21. c4 {[%clk 0:02:34.5]} 21... Kd7 {[%clk 0:02:28.7]} 22. f4 {[%clk
0:02:29.7]} 22... Kc6 {[%clk 0:02:27.1]} 23. Kf2 {[%clk 0:02:18.3]} 23... b5
{[%clk 0:02:26.8]} 24. Nd2 {[%clk 0:02:18.3]} 24... bxc4 {[%clk 0:02:25.6]} 25.
Nxc4 {[%clk 0:02:18.7]} 25... Kb5 {[%clk 0:02:26.3]} 26. b3 {[%clk 0:02:19.1]}
26... Kb4 {[%clk 0:02:24.4]} 27. Ke2 {[%clk 0:02:14.8]} 27... Kxb3 {[%clk
0:02:22.1]} 28. Kd3 {[%clk 0:02:15.2]} 28... Ne7 {[%clk 0:01:38.4]} 29. e5
{[%clk 0:01:18.9]} 29... f5 {[%clk 0:01:32]} 30. Bh4 {[%clk 0:01:15.4]} 30...
Nc6 {[%clk 0:01:25.2]} 31. Bxd8 {[%clk 0:01:14.6]} 31... Nxd8 {[%clk 0:01:26.1]}
32. Ne3 {[%clk 0:01:11.4]} 32... Ne6 {[%clk 0:01:17.4]} 33. g3 {[%clk
0:01:03.3]} 33... g6 {[%clk 0:01:17.4]} 34. h4 {[%clk 0:00:58.5]} 34... h5
{[%clk 0:01:13]} 35. Nd5 {[%clk 0:00:52.5]} 35... c4+ {[%clk 0:01:10.3]} 36. Kd2
{[%clk 0:00:52.8]} 36... Kb2 {[%clk 0:01:10.5]} 37. Nc3 {[%clk 0:00:36.3]} 37...
Nc5 {[%clk 0:00:58.8]} 38. Nd1+ {[%clk 0:00:30.4]} 38... Kb3 {[%clk 0:00:58.9]}
39. Ke3 {[%clk 0:00:31.2]} 39... c3 {[%clk 0:00:51.7]} 40. Kd4 {[%clk
0:00:03.2]} 40... c2 {[%clk 0:00:51]} 41. Ne3 {[%clk 0:00:03.6]} 41... c1=Q
{[%clk 0:00:49.2]} 42. Kd5 {[%clk 0:00:04]} 42... Qxe3 {[%clk 0:00:48.4]} 0-1

[Event "Late-Titled-Tuesday-Blitz-September-05-2023"]
[Site "Chess.com"]
[Date "2023.09.05"]
[Round "5"]
[White "pouya21"]
[Black "Russian_berezka"]
[Result "1-0"]
[WhiteElo "2806"]
[BlackElo "2590"]
[TimeControl "180+1"]
[EndTime "14:56:28 PDT"]
[Termination "pouya21 won by resignation"]

1. d4 {[%clk 0:03:00.7]} 1... Nf6 {[%clk 0:02:58.9]} 2. c4 {[%clk 0:03:00.9]}
2... e6 {[%clk 0:02:59.2]} 3. g3 {[%clk 0:03:01]} 3... d5 {[%clk 0:02:58.3]} 4.
Bg2 {[%clk 0:03:01.5]} 4... c6 {[%clk 0:02:58.8]} 5. Nf3 {[%clk 0:02:55.2]} 5...
b6 {[%clk 0:02:58.7]} 6. O-O {[%clk 0:02:53.7]} 6... Be7 {[%clk 0:02:59.2]} 7.
Qc2 {[%clk 0:02:52.1]} 7... O-O {[%clk 0:02:59.4]} 8. Nbd2 {[%clk 0:02:47.5]}
8... c5 {[%clk 0:02:58.8]} 9. dxc5 {[%clk 0:02:34.5]} 9... bxc5 {[%clk
0:02:59.7]} 10. e3 {[%clk 0:02:34.1]} 10... Nc6 {[%clk 0:02:58.7]} 11. b3 {[%clk
0:02:33.1]} 11... Qb6 {[%clk 0:02:59.1]} 12. Bb2 {[%clk 0:02:32.9]} 12... Rd8
{[%clk 0:02:51.6]} 13. Rac1 {[%clk 0:02:32]} 13... Nb4 {[%clk 0:02:32.9]} 14.
Qb1 {[%clk 0:02:30.5]} 14... Ba6 {[%clk 0:02:28.8]} 15. Rfd1 {[%clk 0:02:29]}
15... Rac8 {[%clk 0:02:26.1]} 16. a3 {[%clk 0:02:09.8]} 16... Nc6 {[%clk
0:02:26.3]} 17. cxd5 {[%clk 0:02:10.3]} 17... exd5 {[%clk 0:02:23]} 18. Nh4
{[%clk 0:02:11]} 18... Na5 {[%clk 0:02:08.4]} 19. Nf5 {[%clk 0:02:09]} 19... Bf8
{[%clk 0:02:08.8]} 20. b4 {[%clk 0:02:02.3]} 20... cxb4 {[%clk 0:01:56.9]} 21.
Rxc8 {[%clk 0:01:56]} 21... Bxc8 {[%clk 0:01:44]} 22. Bd4 {[%clk 0:01:47.1]}
22... Bc5 {[%clk 0:01:32.9]} 23. Ne7+ {[%clk 0:01:35.1]} 23... Kf8 {[%clk
0:01:27.8]} 24. Nxc8 {[%clk 0:01:34]} 24... Rxc8 {[%clk 0:01:23.1]} 25. Bxf6
{[%clk 0:01:15.2]} 25... Qxf6 {[%clk 0:01:20]} 26. axb4 {[%clk 0:01:13.4]} 26...
Rb8 {[%clk 0:01:18.6]} 27. Qxh7 {[%clk 0:01:13.9]} 27... Rxb4 {[%clk 0:01:15.7]}
28. Qh8+ {[%clk 0:01:10]} 28... Ke7 {[%clk 0:01:15.6]} 29. Bxd5 {[%clk 0:01:08]}
29... Qe5 {[%clk 0:00:43.5]} 30. Nf3 {[%clk 0:01:04.5]} 30... Qc3 {[%clk
0:00:34.7]} 31. Ba8 {[%clk 0:00:51.5]} 31... Bb6 {[%clk 0:00:29.1]} 32. Qh5
{[%clk 0:00:46.3]} 32... Qc2 {[%clk 0:00:23.2]} 33. Qe5+ {[%clk 0:00:41.2]}
33... Kf8 {[%clk 0:00:23.5]} 34. Rd7 {[%clk 0:00:36.8]} 34... Qg6 {[%clk
0:00:11.4]} 35. Qe7+ {[%clk 0:00:36.1]} 35... Kg8 {[%clk 0:00:11.5]} 36. Qxb4
{[%clk 0:00:36.5]} 36... Qf5 {[%clk 0:00:10.3]} 37. Qe7 {[%clk 0:00:33.4]} 37...
Qxf3 {[%clk 0:00:09.8]} 38. Bxf3 {[%clk 0:00:31.4]} 38... Bd4 {[%clk 0:00:08.4]}
39. Qxf7+ {[%clk 0:00:28.3]} 39... Kh8 {[%clk 0:00:07.5]} 40. h4 {[%clk
0:00:27.9]} 40... g5 {[%clk 0:00:08.3]} 41. h5 {[%clk 0:00:27.8]} 1-0